Cogmind - Beta 13 @@@ ROGUE MODE // 2024.04.27 @ 17:54:11 Player: dp-fld Result: Self-destructed Performance ------------- Evolutions (2) 1000 Regions Visited (3) 600 Robots Destroyed (32) 160 Value Destroyed (942) 942 Prototype IDs (16) 320 Alien Tech Used (0) 0 Bonus (218) 218 TOTAL SCORE: 3240 Bonus ------- Follower Combat Kills 266 Friendly Fire -48 Cogmind --------- Core Integrity 474/550 Matter 235/300 Energy 34/100 System Corruption 0% Temperature Hot (231) Movement Treading (250) Ox1 Location -8/Materials Parts ------- > --- POWER (1) -------- (None) > --- PROPULSION (3) --- Armored Treads > --- UTILITY (4) ------ Large Storage Unit Improved Terrain Scanner > --- WEAPON (3) ------- Heavy Particle Gun Heavy Particle Gun Improved Light Cannon > --- INVENTORY (15) --- Meta Core Light Treads Light Treads Light Treads Huge Storage Unit Improved Utility Shielding Heavy Particle Gun Heavy Particle Gun Subdweller Beam Cannon Battle Rifle Improved Light Cannon Improved Light Cannon Grenade Launcher Makeshift Hammer Katana Peak State ------------ > --- POWER ------------ Light Nuclear Core > --- PROPULSION ------- Spiked Treads Spiked Treads Armored Treads > --- UTILITY ---------- Disposable Heat Sink Large Storage Unit Improved Terrain Scanner Improved Light Armor Plating > --- WEAPON ----------- Heavy Particle Gun Heavy Particle Gun Heavy Particle Gun > --- INVENTORY -------- Meta Core Light Treads Light Treads Light Treads Huge Storage Unit Improved Utility Shielding Heavy Particle Gun Subdweller Beam Cannon Battle Rifle Improved Light Cannon Improved Light Cannon Improved Light Cannon Grenade Launcher Makeshift Hammer Katana [Rating: 35] Favorites ----------- Power Light Ion Engine Engine Light Ion Engine Power Core Light Nuclear Core Propulsion Light Treads Treads Light Treads Leg Aluminum Leg Utility Large Storage Unit Device V3-11A's Pendant Storage Large Storage Unit Protection Improved Light Armor Plating Weapon Grenade Launcher Energy Gun Heavy Particle Gun Energy Cannon Subdweller Beam Cannon Ballistic Gun Assault Rifle Ballistic Cannon Light Cannon Launcher Grenade Launcher Special Weapon Mining Laser Impact Weapon Makeshift Hammer Build | -11 -10 -10 -8 ------- Run | Yrd Mat Sub Mat Slots Evolved 4 | . . . 4 Power . | . . . . Propulsion 1 | . . . 1 Utility 2 | . . . 2 Weapon 1 | . . . 1 Parts Attached 44 | 1 15 12 16 Power 6 | . 4 . 2 Engine 5 | . 4 . 1 Core 1 | . . . 1 Reactor . | . . . . Propulsion 11 | . 5 4 2 Treads 8 | . 2 4 2 Leg 3 | . 3 . . Wheel . | . . . . Hover . | . . . . Flight . | . . . . Utility 9 | 1 3 2 3 Device 7 | 1 2 2 2 Storage 1 | . 1 . . Processor . | . . . . Hackware . | . . . . Protection 1 | . . . 1 Artifact . | . . . . Weapon 18 | . 3 6 9 Energy Gun 3 | . . . 3 Energy Cannon 1 | . . . 1 Ballistic Gun 2 | . 1 1 . Ballistic Cannon 5 | . 1 1 3 Launcher 4 | . 1 2 1 Special Weapon 1 | . . 1 . Impact Weapon 2 | . . 1 1 Slashing Weapon . | . . . . Piercing Weapon . | . . . . Special Melee Weapon . | . . . . Unidentified Prototypes 1 | . . 1 . Parts Lost 7 | . 1 . 6 Power 1 | . . . 1 Propulsion 2 | . . . 2 Utility 3 | . 1 . 2 Weapon 1 | . . . 1 Highest Loss Streak 5 | . 1 . 5 To Critical Strikes . | . . . . Average Slot Usage (%) 99 | . 99 100 98 Engine 12 | . 14 14 4 Treads 23 | . 7 28 26 Leg 4 | . 20 . . Device 14 | . 13 14 19 Storage 13 | . 14 14 9 Protection 1 | . . . 7 Energy Gun 1 | . . . 7 Ballistic Gun 6 | . 25 1 . Ballistic Cannon 2 | . 1 1 7 Launcher 9 | . 1 13 . Special Weapon 3 | . . 5 . Impact Weapon 4 | . . 5 5 Naked Turns . | . . . . Heaviest Build 46 | 13 31 30 46 Greatest Support 60 | 20 40 40 60 Greatest Overweight (x) 1 | . 1 . . Average Overweight (x) . | . . . . Largest Inventory Capacity 15 | 8 15 15 15 Average Capacity 14 | 8 10 15 15 Most Carried 15 | 8 15 15 15 Average Carried 13 | 6 10 14 14 Final Capacity 15 | 8 15 15 15 Final Carried 15 | 7 15 15 15 Class Distribution -------------------- 78% | Mutant 14% | Scavenger-Mutant 4% | Bomber Dominant Class ---------------- Scavenger-Mutant | -10/Materials Mutant | -10/Subcaves Mutant | -8/Materials Resources | -11 -10 -10 -8 ----------- Run | Yrd Mat Sub Mat Matter Collected 1102 | 248 379 277 198 Remotely . | . . . . Salvage Created 1031 | 48 496 173 314 Parts 55 | 8 25 7 15 Haulers Intercepted 2 | . 2 . . Recyclers Shooed 1 | 1 . . . Parts Field Recycled . | . . . . Retrieved Matter . | . . . . Parts Self-Destructed 29 | . . 29 . Prevented . | . . . . Kills | -11 -10 -10 -8 ------- Run | Yrd Mat Sub Mat Combat Hostiles Destroyed 23 | . 11 2 10 Guns 15 | . 11 . 4 Cannons 7 | . . 1 6 AOE 1 | . . 1 . Classes Destroyed 11 | 1 3 1 6 Worker 1 | . . . 1 Builder 1 | . . . 1 Tunneler 3 | 3 . . . Hauler 2 | . 2 . . Mechanic 1 | . . . 1 Operator 1 | . . . 1 Swarmer 6 | . 3 . 3 Grunt 11 | . 8 . 3 Sentry 3 | . . . 3 Hunter 1 | . . . 1 Subdweller 2 | . . 2 . Best Kill Streak 7 | 2 3 2 7 Combat Bots Only 5 | . 3 2 5 Max Kills in Single Turn 2 | 1 1 2 2 Gunslinging . | . . . . Exploded 1 | . . 1 . Melee . | . . . . Uniques/NPCs Destroyed . | . . . . Combat | -11 -10 -10 -8 -------- Run | Yrd Mat Sub Mat Hostile Shots Fired 199 | . 52 8 139 Missed 56 | . 16 2 38 Damage Taken 1890 | . 463 341 1086 Core 240 | . 134 30 76 Absorbed by Shields . | . . . . Core Remaining (%) 67 | 100 . 34 . Volleys Fired 147 | 8 48 67 24 Largest 3 | 2 2 2 3 Hottest 165 | 40 40 100 165 Shots Fired 243 | 16 95 69 63 Gun 152 | 16 94 17 25 Cannon 37 | . . 2 35 Launcher 9 | . 1 5 3 Special 45 | . . 45 . Kinetic 152 | 16 94 19 23 Thermal 82 | . . 45 37 Explosive 9 | . 1 5 3 Electromagnetic . | . . . . Robot Hit Streak 23 | 6 9 17 23 Robot Miss Streak 5 | 2 4 1 5 Penetration Max . | . . . . Secondary Targets 1 | . 1 . . Max Gunslinging Chain 1 | . 1 . . Shots Hit Robots 130 | 9 62 19 40 Core Hits 62 | 3 24 10 25 Critical Kills . | . . . . Critical Parts Destroyed 1 | . 1 . . Critical Strikes 4 | . 1 . 3 Burn 2 | . . . 2 Destroy 1 | . 1 . . Blast 1 | . . . 1 Melee Attacks 63 | . . 62 1 Impact 63 | . . 62 1 Slashing . | . . . . Piercing . | . . . . Sneak Attacks . | . . . . Combat Hostiles . | . . . . Follow-up Attacks . | . . . . Damage Inflicted 2482 | 112 790 384 1196 Guns 1472 | 112 790 197 373 Cannons 541 | . . 17 524 Explosions 412 | . . 122 290 Melee . | . . . . Ramming 9 | . . . 9 Kinetic 1366 | 112 790 214 250 Thermal 695 | . . 48 647 Explosive 412 | . . 122 290 Electromagnetic . | . . . . Impact . | . . . . Slashing . | . . . . Piercing . | . . . . Highest Corruption . | . . . . Average Corruption . | . . . . Corruption Purged . | . . . . Corruption Blocked . | . . . . Overload Shots . | . . . . Overflow Damage . | . . . . Projectiles . | . . . . Explosions . | . . . . Melee . | . . . . Knockbacks 1 | . . . 1 Impact . | . . . . Kinetic 1 | . . . 1 Secondary . | . . . . Self-Inflicted Damage . | . . . . Shots . | . . . . Rammed 3 | . . . 3 Targets Rammed 3 | . . . 3 Kicked . | . . . . Crushed . | . . . . Highest Temperature 262 | . 9 . 262 Average Temperature 95 | . 3 . 102 Received Heat Transfer 492 | . 222 18 252 Siege Activations . | . . . . Robots Corrupted . | . . . . Combat Hostiles . | . . . . Parts Fried . | . . . . Impact Corruptions . | . . . . Robots Melted . | . . . . Combat Hostiles . | . . . . Parts Melted 1 | . . . 1 Heat Transferred 1358 | . . 100 1258 Parts Sabotaged . | . . . . Parts Stolen . | . . . . Parts Stripped . | . . . . Power Chain Reactions . | . . . . Alert | -11 -10 -10 -8 ------- Run | Yrd Mat Sub Mat Peak Influence 344 | 15 169 . 344 Initial 9 | . 9 . . Average 69 | 5 57 . 91 Maximum Alert Level 1 | . . . 1 Low Security (%) 99 | 100 100 . 98 Level 1 . | . . . 1 Level 2 . | . . . . Level 3 . | . . . . Level 4 . | . . . . Level 5 . | . . . . High Security . | . . . . Max Security . | . . . . Squads Dispatched 8 | . 2 . 6 Investigation 1 | . 1 . . Extermination . | . . . . Reinforcement 5 | . 1 . 4 Assault 1 | . . . 1 Garrison 1 | . . . 1 Intercept . | . . . . Searches Triggered . | . . . . Construction Impeded 1 | . . . 1 Haulers Reinforced . | . . . . Active Scanning Responses . | . . . . Cargo Convoy Interrupts . | . . . . Stealth | -11 -10 -10 -8 --------- Run | Yrd Mat Sub Mat Distress Signals 3 | . 2 . 1 Communications Jammed . | . . . . Distress Signals . | . . . . Times Spotted 70 | . 31 15 24 Peak Tracking Total 7 | . 4 4 7 Tactical Retreats 1 | . . 1 . Traps | -11 -10 -10 -8 ------- Run | Yrd Mat Sub Mat Traps Triggered 5 | . 1 4 . Indirectly . | . . . . Trap Hack Attempts . | . . . . Triggered . | . . . . Disarmed . | . . . . Reprogrammed . | . . . . Reused . | . . . . Traps Extracted . | . . . . Installed . | . . . . Triggered . | . . . . Machines | -11 -10 -10 -8 ---------- Run | Yrd Mat Sub Mat Machines Disabled 7 | . . 5 2 Max in Single Turn 1 | . . 1 1 Garrison Access 1 | . . . 1 Machines Repaired . | . . . . Machines Dismantled . | . . . . Machines Sabotaged . | . . . . Overloaded Fab Kills . | . . . . Hacking | -11 -10 -10 -8 --------- Run | Yrd Mat Sub Mat Machines Accessed 12 | . 7 2 3 Terminals 9 | . 7 . 2 Fabricators . | . . . . Repair Stations . | . . . . Recycling Units . | . . . . Scanalyzers 1 | . . . 1 Garrison Access . | . . . . Total Hacks 34 | . 17 11 6 Successful 17 | . 4 11 2 Failed 17 | . 13 . 4 Catastrophic 4 | . 3 . 1 Database Lockouts . | . . . . Manual 11 | . 9 . 2 Terminals 22 | . 17 . 5 Fabricators . | . . . . Repair Stations . | . . . . Recycling Units . | . . . . Scanalyzers 1 | . . . 1 Garrison Access . | . . . . Terminal Hacks 16 | . 4 11 1 Record 10 | . . 10 . Robot Analysis 1 | . 1 . . Prototype ID Bank 2 | . 2 . . Branch Access Points 1 | . . . 1 Zone Layout 1 | . 1 . . Derelict Proto ID Bank 1 | . . 1 . Fabricator Hacks . | . . . . Repair Station Hacks . | . . . . Recycling Unit Hacks . | . . . . Scanalyzer 1 | . . . 1 Insert Component 1 | . . . 1 Garrison Access Hacks . | . . . . Unauthorized Hacks . | . . . . Terminals . | . . . . Fabricators . | . . . . Repair Stations . | . . . . Recycling Units . | . . . . Scanalyzers . | . . . . Garrison Access . | . . . . Data Cores Recovered . | . . . . Used . | . . . . Hacking Detections 10 | . 7 . 3 Full Trace Events 1 | . 1 . . Feedback Events . | . . . . Feedback Blocked . | . . . . Robot Schematics Acquired . | . . . . Robots Built . | . . . . Authchips . | . . . . Time . | . . . . Total Robot Build Rating . | . . . . Part Schematics Acquired . | . . . . Parts Built . | . . . . Authchips . | . . . . Time . | . . . . Total Part Build Rating . | . . . . Parts Repaired . | . . . . Time . | . . . . Parts Recycled . | . . . . Recycled Matter . | . . . . Retrieved Matter . | . . . . Retrieved Components . | . . . . Parts Scanalyzed . | . . . . Part Schematics Acquired . | . . . . Parts Damaged . | . . . . Bothacking | -11 -10 -10 -8 ------------ Run | Yrd Mat Sub Mat Used RIF Installer . | . . . . Robots Hacked . | . . . . Non-combat . | . . . . Combat . | . . . . Robot Hacks Applied . | . . . . Relay Couplers Released 2 | . . . 2 Machine Destruction 2 | . . . 2 Fabnet Peak Effective % . | . . . . Robots Rewired . | . . . . Allies Hacked . | . . . . Hacks Repelled . | . . . . Allies | -11 -10 -10 -8 -------- Run | Yrd Mat Sub Mat Total Allies 12 | . . 12 . Largest Group 6 | . . 6 6 Highest-Rated Group 114 | . . 114 114 Highest-Rated Ally 19 | . . 19 19 Total Orders . | . . . . Ally Attacks 63 | . . 33 30 Total Damage 1165 | . . 513 652 Kills 14 | . . 7 7 Allies Corrupted . | . . . . Allies Melted . | . . . . Intel | -11 -10 -10 -8 ------- Run | Yrd Mat Sub Mat Robot Analysis Total 1 | . 1 . . Derelict Logs Recovered 1 | . . 1 . Drone Launches . | . . . . Drone Recoveries . | . . . . Exploration | -11 -10 -10 -8 ------------- Run | Yrd Mat Sub Mat Turns Passed 6722 | 80 1497 4138 1007 Spaces Moved 3821 | 25 914 2340 542 Core . | . . . . Treads 3122 | . 240 2340 542 Legs 699 | 25 674 . . Wheels . | . . . . Hover . | . . . . Flight . | . . . . Fastest Speed 120 | 120 120 160 160 Average Speed 154 | 120 137 160 162 Slowest Speed 190 | 120 190 160 163 Overloaded Moves . | . . . . Propulsion Burnouts . | . . . . Robots Hopped . | . . . . Cave-ins Triggered . | . . . . Exploration Rate (%) 59 | 3 99 96 40 Regions Visited 3 Branch Regions 1 Pre-discovered Areas 2 | . . 2 . Known Exits Taken . | . . . . Unknown Exits Taken 3 | 1 1 1 . Scrap Searched 11 | . . 11 . Spaces Dug 2 | . . 1 1 Terrain Destroyed 39 | . 11 15 13 Melee 2 | . . 1 1 Projectile 4 | . . . 4 AOE 33 | . 11 14 8 Terrain Rammed . | . . . . Walls Destroyed . | . . . . Machines Disabled . | . . . . Actions | -11 -10 -10 -8 --------- Run | Yrd Mat Sub Mat Total 4249 | 59 1059 2516 615 Wait 98 | 24 55 14 5 Move 3818 | 24 913 2339 542 Hop . | . . . . Pick Up 36 | 2 13 9 12 Fast Attach 7 | . 2 2 3 Attach 5 | 1 . . 4 Detach 1 | . 1 . . Swap 32 | . 13 10 9 Drop 39 | . 14 13 12 Fire 147 | 8 48 67 24 Melee 63 | . . 62 1 Ram . | . . . . Kick . | . . . . Crush 3 | . . . 3 Escape Stasis . | . . . . Rewire . | . . . . Trap . | . . . . Miscellaneous . | . . . . Route ------- -11/Scrapyard -10/Materials (discovered 5 exits: [*Mat x3] / [*Min] / *Sub) -10/Subcaves (discovered 3 exits: *Mat x2 / [*Rec]) -8/Materials History --------- Turn | Location | Event 1 | -11/Scrapyard | Discovered new exit (range 3) 81 | -11/Scrapyard | Entered Materials 155 | -10/Materials | Discovered new exit (range 16) 301 | -10/Materials | Build established: Mutant 368 | -10/Materials | Discovered new exit (range 14) 652 | -10/Materials | Build established: Scavenger-Mutant 676 | -10/Materials | Discovered new exit (range 6) 770 | -10/Materials | Discovered new exit (range 15) 813 | -10/Materials | Core integrity fell below 50% 996 | -10/Materials | Discovered new exit (range 16) 1475 | -10/Materials | Build established: Mutant 1578 | -10/Materials | Entered Subcaves 1598 | -10/Subcaves | A swath of the cavern ceiling suddenly collapsed 1978 | -10/Subcaves | Visited triangular shrine 1988 | -10/Subcaves | Found Prototype Device 1988 | -10/Subcaves | Identified V3-11A's Pendant 1993 | -10/Subcaves | Befriended Subdweller 2065 | -10/Subcaves | Learned location of Zion (-6) 2065 | -10/Subcaves | Met a Zionite searching for "candidates" 2203 | -10/Subcaves | Discovered new exit (range 7) 2269 | -10/Subcaves | Learned location of Mines (-9) 2328 | -10/Subcaves | Befriended Subdweller 2333 | -10/Subcaves | Befriended Subdweller 2403 | -10/Subcaves | Befriended Subdweller 2408 | -10/Subcaves | Befriended Subdweller 2439 | -10/Subcaves | Shifting Twisted Machinery released Sub. Shrapnel Launcher 2513 | -10/Subcaves | Shifting Twisted Machinery released Battle Rifle 2733 | -10/Subcaves | Befriended Subdweller 3145 | -10/Subcaves | Shifting Twisted Machinery released Battle Rifle 3157 | -10/Subcaves | Shifting Twisted Machinery released Sub. Power Source 3237 | -10/Subcaves | Lost 4 allies 3258 | -10/Subcaves | Befriended Subdweller 3293 | -10/Subcaves | Befriended Subdweller 3293 | -10/Subcaves | Befriended Subdweller 3314 | -10/Subcaves | Shifting Twisted Machinery released Flamer 3321 | -10/Subcaves | A swath of the cavern ceiling suddenly collapsed 3441 | -10/Subcaves | Shifting Twisted Machinery released Sub. Power Source 4194 | -10/Subcaves | Visited 4L-MR0's lab 4215 | -10/Subcaves | Found Meta Core 4328 | -10/Subcaves | Befriended Subdweller 4328 | -10/Subcaves | Befriended Subdweller 4328 | -10/Subcaves | Discovered new exit (range 15) 4435 | -10/Subcaves | Visited Clippyterm 4680 | -10/Subcaves | Discovered new exit (range 11) 4848 | -10/Subcaves | Disturbed a concealed Subdweller 4848 | -10/Subcaves | Befriended Subdweller 4857 | -10/Subcaves | Disturbed a concealed Subdweller 5716 | -10/Subcaves | Entered Materials 5716 | -8/Materials | Accompanied by 6 allies 5716 | -8/Materials | Evolved 4 slots: Propulsion x1, Utility x2, Weapon x1 6139 | -8/Materials | Lost 6 allies 6705 | -8/Materials | Garrison activated, responded to threat 6723 | -8/Materials | Self-destructed Last Messages --------------- 06703_ Slammed into H-55 Commando. 06704_ Penetrated by Slug. 06704_ S-10 Pest destroyed. 06704_ Imp. Light Armor Plating destroyed. 06705_ H-55 Commando calls for garrison reinforcements. 06705_ ALERT: Activating Garrison Access M001. 06705_ H-55 Commando destroyed. 06706_ S-10 Pest emerges from the garrison. 06708_ Slammed into S-10 Pest. 06708_ Spk. Treads destroyed. 06710_ ALERT: Garrison Access compromised, dispatching assault squad. 06710_ Garrison Access disabled. 06710_ Relay Coupler [Grunt] tumbles out of Garrison Access. 06710_ Relay Coupler [Swarmer] tumbles out of Garrison Access. 06710_ S-10 Pest destroyed. 06711_ R-06 Scavenger collects Lgt. Assault Rifle. 06712_ Lgt. Nuclear Core destroyed. 06713_ S-10 Pest destroyed. 06717_ Disposable Heat Sink destroyed. 06723_ Spk. Treads destroyed. Map ----- +----------------------------------------------------+ | # #### #????#?#?????????????????????????? | | #+####### #########????????????????????????? | | # #??#### # #????????????????????????? | | # #??# # #? ??????????????????????? | | # #??# + # ???????????????????????? | | # #?## # #?? ?"???????????????????? | | # #??# ###+#### #########?????"?? ???????????????? | | # #??# ## #?# #?#???????????????????????????? | | # ##?# ## #?# ######????????????????????????? | | ### ##[ ### ## #?????"??????????????????? | | ## + ##??##?#?????????????????? | | ###### ### ##### #? ?? #??????????????????? | | # ##???## #?# #???## ###??? ????#?? ?????????? | | # #?????#! !###+#????# ##??????###### ?????????? | | #??######## ?### ###?????? ????????? | | ###?##??????#/ !!! # #?????? ????????? | | ?#???##???#?# !![ # ###+### ???????? | | ????##???#??#! !![ + ! !????????? | | #########???# # ## ????????? | | + # ## *! ^ ????????? | | ########????##########+#### *! !! ????????? | | # ##?????# ! / # !% ????????? | | + ]#?###### s # ! ????????? | | # [[ #?# # """ !s=# "" ???????? | | # [ #?# T # """ "!=%#/ "T #??????? | | # #?# # """ "G"@#= " #??????? | | # #?# # "s%# % #??????? | | ########## # / =*+%! ??????? | | + ####### ##;### #######+####????????? | | # #?????#### ?? ??????????????????? | | # #?##?????# ? #???????????????? | | + #???#????# ?? #???????????????? | | #####+#########???????## ??" """?#???????????????? | | # #????????# ??" """ ????????????????? | | + #??#?????#???" """ #???????????????? | | # #???#???????? ??#???????????????? | | # ! #????????? ??? ??? ?? ?????????????? | | ###############?????#??????? ????????????????????? | | | | | | | | | | | | | | | | | | | | | | | | | +----------------------------------------------------+ Best States ------------- Heat Dissipation 41 Coolant Potential 50 Energy Generation 14 Energy Capacity 250 Matter Stores 300 Matter Capacity 300 Sight Range 16 Terrain Scan Range 16 Terrain Scan Density 10 Armor Coverage 150 Evasion (%) 55 Recoil Reduction 3 Item Schematics ----------------- None Robot Schematics ------------------ None Fabricated ------------ Nothing Alien Tech Used ----------------- None Achievements -------------- None Challenges ------------ None Game ------ Seed AntimissileEnhancedGravjet Manual? 0 Play Time 00:55:49 Cumulative 335.8 hours Start 2024.04.27 @ 15:39:43 End 2024.04.27 @ 17:54:11 Sessions 3 Manual Loads 0 Difficulty Rogue Special Mode None Game No. 112 Rogue 73 Adventurer 0 Explorer 39 Win Type - Total 11 Types 9/1/1/0/0/0/0/0/0 Lore% 68 Gallery% 75 Achievement% 67 Wizard Run 0 Options --------- Layout 0 ASCII 1 Keyboard 1 Movement Arrows Keybinds 0 Fullscreen 2 Font 36/Smallcaps Map View 76x50 Zoom Use 0% Tactical HUD 1 Map Filters NONE Filters NONE Steam 1 RUN: 2ffb5af9-72e8-469d-ae70-b67040b68957